[Event "44th Chess Olympiad Women 2022"]
[Site "Chennai"]
[Date "2022.07.30"]
[Round "2.75"]
[White "Marusic, Nada"]
[Black "Tilman, Zulmira Americo"]
[Result "0-1"]
[ECO "C55"]
[WhiteElo "1955"]
[BlackElo "1255"]
[Annotator "TA"]
[PlyCount "68"]
[EventDate "2022.07.29"]
[EventType "team-tourn"]
[EventCountry "IND"]
[SourceTitle "playchess.com"]
[Source "ChessBase"]
[SourceQuality "1"]
[WhiteTeam "Slovenia"]
[BlackTeam "TLS"]
[WhiteTeamCountry "SLO"]
[TimeControl "40/5400+30:1800+30"]

{[%evp 12,67,-27,-86,-8,-170,-29,-171,0,-302,-292,-291,-121,-127,-13,-43,134,86,91,88,84,-26,-29,-158,-153,-143,-144,-150,-75,-56,-68,-86,-73,-155,-50,-108,-98,-159,-156,-189,-138,-747,-711,-2160,-708,-2074,-2024,-1995,-1546,-29991,-29992,-29992,-29993,-29993,-29994,-29998,-29999,-29999]} 1. e4 {[%emt 0:00:06]} e5 {[%emt 0:00:03]} 2. Nf3 {[%emt 0:00:10]} Nc6 {[%emt 0:00:20]} 3. Nc3 {[%emt 0:00:15]} Nf6 {[%emt 0:00:36]} 4. Bc4 {[%emt 0:01:06]} Bc5 {[%emt 0:00:59]} 5. Ng5 {[%emt 0:01:32]} O-O {[%emt 0:01:30]} 6. d3 {[%emt 0:00:30]} d6 {[%emt 0:00:12]} 7. O-O {[%emt 0:01:09]} (7. h3 $11 {keeps the balance.}) 7... a6 {[%emt 0:01:54] [#] C55: Two Knights: 4 d3, 4 d4 exd4 5 e5 and Max Lange Attack.} (7... Bg4 $17 8. Nf3 Nd4) 8. b3 $146 {[%emt 0:03:46]} (8. Nd5 $11 {and White stays safe.}) ({Predecessor:} 8. a3 Bg4 9. Qd2 h6 10. h3 Bh5 11. a4 Nd4 12. Re1 hxg5 13. Qxg5 Nxc2 14. Bd2 Nxa1 15. Rxa1 {0-1 (24) Ferdousi,A (1004)-Noshin,A (2004) Dhaka 2021}) 8... Ng4 {[%emt 0:03:52]} (8... Bg4 $19 9. Qd2 h6 10. Bxf7+ Rxf7 11. Nxf7 Kxf7) 9. Qf3 {[%emt 0:04:48]} (9. Rb1 $11 {and White has nothing to worry.}) 9... Nf6 $2 {[%emt 0:02:15]} (9... Nd4 $1 $19 {[%cal Rd4f3]} 10. Qd1 (10. Bxf7+ $2 Kh8 $19) (10. Qh3 $2 h6 $19) 10... h6) 10. Re1 $2 {[%emt 0:04:28][%mdl 8192]} (10. Qd1 $1 $11 {and White is okay.}) 10... Nd4 $19 {[%emt 0:01:12]} 11. Qd1 {[%emt 0:03:18] [#]} c6 {[%emt 0:03:04]} (11... Bg4 $1 $19 {[%cal Rg4d1] has better winning chances.} 12. Qd2 b5 13. Bxf7+ Rxf7 14. Nxf7 Kxf7) 12. Na4 $17 {[%emt 0:10:08]} Bb4 {[%emt 0:01:42]} (12... Ba7 $17 {Hoping for ...d5.} 13. c3 Bg4) 13. c3 $11 {[%emt 0:02:29] Nxf7 is the strong threat.} Ba5 $2 {[%emt 0:03:23] [#]} (13... b5 $15 {stays ahead.} 14. cxb4 bxa4 15. bxa4 h6) 14. cxd4 {[%emt 0:00:33]} ({White should play} 14. b4 $1 {[%cal Rb4a5]} Bxb4 15. cxb4) 14... Bxe1 $16 {[%emt 0:00:34]} 15. Qxe1 {[%emt 0:00:23]} exd4 {[%emt 0:00:33]} 16. Nf3 {[%emt 0:02:37]} (16. e5 $16 d5 17. exf6) 16... b5 $36 {[%emt 0:00:15][%mdl 2048] Black is more active.} 17. Nb2 {[%emt 0:06:46]} (17. Nxd4 $11 bxc4 18. bxc4) 17... bxc4 $17 {[%emt 0:00:56]} 18. Nxc4 {[%emt 0:02:26]} c5 {[%emt 0:01:09]} 19. b4 {[%emt 0:01:56]} h6 {[%emt 0:00:21]} (19... Bg4 $142 {Strongly threatening ...Bxf3.} 20. bxc5 Bxf3 21. gxf3 dxc5) 20. bxc5 {[%emt 0:03:19]} dxc5 {[%emt 0:00:30]} 21. Ba3 {[%emt 0:01:47]} Qc7 {[%emt 0:01:27]} 22. Rb1 {[%emt 0:02:18]} (22. Qa5 $142 Qxa5 23. Nxa5) 22... Ng4 {[%emt 0:00:33]} (22... Be6 $17 {White must now prevent ...Bxc4.} 23. Rc1 Nd7) 23. Nb6 {[%emt 0:02:39]} ({White should try} 23. Rc1 $15) 23... Rb8 {[%emt 0:02:41]} 24. Qa5 {[%emt 0:04:08]} (24. Nd5 $142 Rxb1 25. Qxb1) 24... Be6 {[%emt 0:03:39]} 25. Bxc5 {[%emt 0:02:51]} Rfd8 {[%emt 0:05:46] Chess con chili.} (25... Rfc8 $19 26. Bxd4 Rd8) 26. Bxd4 {[%emt 0:04:07][%mdl 8192] [#]} (26. h3 $17 Ne5 27. Nxe5 Qxe5 28. Re1) 26... Rxd4 $1 $19 {[%emt 0:00:12][%mdl 512]} 27. Nxd4 {[%emt 0:00:15]} (27. h3 Rxd3) 27... Qxh2+ {[%emt 0:00:25]} 28. Kf1 {[%emt 0:00:15]} Qh1+ {[%emt 0:01:07][%mdl 64] Skewer} 29. Ke2 {[%emt 0:00:44]} Qxb1 {[%emt 0:00:25]} 30. Qxa6 {[%emt 0:02:40]} Qb2+ {[%emt 0:00:21] Black mates.} 31. Kd1 {[%emt 0:02:35]} Nxf2+ {[%emt 0:02:17]} 32. Ke1 {[%emt 0:00:29]} Qxd4 {[%emt 0:00:25]} 33. Na4 {[%emt 0:01:34]} Qe3+ {[%emt 0:01:28]} 34. Kf1 {[%emt 0:00:37]} Rb1# {[%emt 0:00:09] Weighted Error Value: White=1.25/Black=0.62} 0-1